bitfinex/quotes_ETHUSD_20260213
["timestamp","ask_amount","ask_price","bid_price","bid_amount"]
[1770978843220,0.002,1962.5,1962.1,0.57597149]
[1770978843939,1.83580112,1962.9,1962.2,7.32988715]
[1770978844144,1.83580112,1962.9,1962.3,2.004]
[1770978844748,0.00153886,1963.0,1962.4,7.32988715]
[1770978844950,0.002,1963.3,1962.9,6.75391566]
[1770978845351,0.5621749,1963.6,1963.1,6.75391566]
[1770978845852,1.27313147,1963.7,1963.1,6.75391566]
[1770978846162,5.09202442,1963.9,1963.3,6.75391566]
[1770978846351,5.65419932,1963.9,1963.3,6.75391566]
[1770978846850,0.5621749,1963.8,1963.0,2.58297149]
[1770978847018,0.5621749,1963.6,1963.0,2.58297149]
[1770978847222,0.002,1963.3,1963.0,3.85652614]
[1770978848041,0.002,1963.3,1963.0,3.28055465]
[1770978848351,0.002,1963.3,1963.0,2.007]
[1770978849055,1.27318946,1963.6,1963.0,3.2805498]
[1770978849941,0.5621749,1963.5,1963.0,2.007]
[1770978850323,0.5621749,1963.5,1963.0,3.28055025]
[1770978850532,1.27318946,1963.6,1963.0,3.85652174]
[1770978850758,1.83520505,1963.9,1963.0,3.85652174]
[1770978851057,1.83520505,1963.9,1963.1,0.57597149]
[1770978851354,1.27303015,1963.9,1963.2,1.84940262]
[1770978851555,1.27449468,1964.0,1963.3,0.57597149]
[1770978851759,1.27449468,1964.0,1963.4,2.009]
[1770978851944,0.00153886,1964.0,1963.5,0.57597149]
[1770978852145,0.918,1964.6,1963.5,0.57597149]
[1770978852146,1.83468298,1964.7,1963.6,8.08188602]
[1770978852359,1.27242508,1964.8,1963.7,0.57597149]
[1770978852541,0.5621749,1964.7,1963.8,2.009]
[1770978853030,0.5621749,1964.7,1963.8,2.58497149]
[1770978853233,0.56371376,1965.0,1964.0,1.84888391]
[1770978854855,0.00153886,1965.0,1964.1,0.57597149]
[1770978855053,0.00153886,1965.0,1964.2,2.58497149]
[1770978855224,0.56371376,1965.0,1964.2,2.009]
[1770978857663,1.83450428,1964.9,1964.2,2.009]
[1770978858543,1.83450428,1964.9,1964.2,3.28177333]
[1770978859031,1.27380633,1965.0,1964.3,0.57597149]
[1770978859230,0.00153886,1965.0,1964.3,0.57597149]
[1770978859640,0.002,1964.9,1964.5,0.57597149]
[1770978861535,1.83398646,1965.7,1964.7,0.57597149]
[1770978861735,1.83398646,1965.7,1964.9,0.57597149]
[1770978861949,1.83398646,1965.7,1964.8,2.008]
[1770978862155,1.83398646,1965.7,1964.8,2.58397149]
[1770978862751,0.5621749,1965.6,1964.8,2.008]
[1770978862952,0.5621749,1965.6,1964.2,1.27278281]
[1770978863171,0.5621749,1965.6,1964.3,2.927]
[1770978863770,0.5621749,1965.4,1964.4,1.27265322]
[1770978863949,0.5621749,1965.4,1964.5,0.57597149]
[1770978864840,1.27194098,1965.5,1964.5,0.57597149]
[1770978865547,0.5621749,1965.4,1964.5,0.57597149]
[1770978865964,0.5621749,1965.4,1964.6,1.27252366]
[1770978865965,1.27207042,1965.3,1964.6,1.27252366]
[1770978867075,1.83424532,1965.3,1964.6,1.27252366]
[1770978867783,0.5621749,1965.2,1964.4,1.27265322]
[1770978867947,1.27219988,1965.1,1964.4,1.27265322]
[1770978868150,1.27219988,1965.1,1964.3,1.27266569]
[1770978868468,1.83437478,1965.1,1964.2,3.85471645]
[1770978869753,0.5621749,1965.0,1964.0,1.85038684]
[1770978870142,0.5621749,1964.8,1964.0,1.27441535]
[1770978870345,0.5621749,1964.8,1964.0,0.00153886]
[1770978872660,1.8016841,1964.7,1964.1,0.001]
[1770978874272,0.52922521,1964.6,1964.1,0.001]
[1770978874792,1.80181365,1964.5,1964.1,0.001]
[1770978876868,0.53962814,1964.4,1964.1,0.001]
[1770978877263,0.53962814,1964.4,1963.6,0.523]
[1770978879196,1.27271801,1964.3,1963.6,1.79616911]
[1770978879352,1.27252366,1964.6,1963.7,0.53077086]
[1770978879544,1.8121518,1964.6,1963.7,0.53077086]
[1770978880168,1.27252366,1964.6,1963.7,0.53077086]
[1770978881286,0.53962814,1964.7,1963.8,1.27304206]
[1770978881786,0.53962814,1964.7,1963.8,1.80381292]
[1770978882803,0.53962814,1964.7,1963.8,1.27304206]
[1770978883210,0.53962814,1964.5,1963.7,1.27306433]
[1770978884114,0.53962814,1964.5,1963.6,6.14634851]
[1770978884403,0.53962814,1964.5,1963.6,2.32694258]
[1770978884611,0.53962814,1964.5,1963.6,1.79617172]
[1770978885710,1.81228136,1964.4,1963.6,1.79617172]
[1770978886003,0.53962814,1964.3,1963.6,0.523]
[1770978886172,0.53962814,1964.3,1963.5,1.27321527]
[1770978886805,0.53962814,1964.3,1963.9,0.001]
[1770978888421,1.27278281,1964.2,1963.9,0.001]
[1770978888923,1.81238602,1964.3,1963.9,0.001]
[1770978889120,1.27275788,1964.3,1963.9,0.001]
[1770978891227,5.63037012,1964.4,1963.9,0.001]
[1770978892220,0.53962814,1964.3,1963.9,0.001]
[1770978893219,0.53962814,1964.3,1963.8,0.001]
[1770978893220,1.81241095,1964.2,1963.8,0.001]
[1770978893736,0.53962814,1964.1,1963.8,0.001]
[1770978894306,0.53962814,1964.1,1963.2,1.27442086]
[1770978894679,0.53962814,1964.1,1963.2,0.001]
[1770978895381,0.53962814,1963.9,1963.2,0.001]
[1770978896303,0.53962814,1963.8,1963.2,0.001]
[1770978897382,1.81273503,1963.7,1963.2,0.001]
[1770978899030,0.53962814,1963.6,1963.2,0.001]
[1770978899401,1.8128647,1963.5,1963.2,0.001]
[1770978899598,0.53962814,1963.4,1963.2,0.001]
[1770978899802,1.27323656,1963.5,1963.3,0.001]
[1770978900003,5.6325744,1963.6,1963.3,0.001]
[1770978900004,1.27321196,1963.6,1963.3,0.001]
[1770978901606,1.78218338,1963.6,1963.3,0.001]
[1770978902314,1.27314529,1963.7,1963.3,0.001]
[1770978902913,7.67302891,1963.9,1963.3,0.52873426]
[1770978903614,7.67302891,1963.9,1963.3,0.001]
[1770978903615,1.27310689,1963.7,1963.3,0.001]
[1770978907545,0.50897142,1963.6,1962.9,0.001]
[1770978908755,0.50897142,1963.4,1962.9,0.001]
[1770978909137,0.50897142,1963.4,1962.4,0.52873426]
[1770978909444,0.50897142,1963.2,1962.4,0.001]
[1770978910046,0.50897142,1963.0,1962.4,0.001]
[1770978910649,0.50897142,1963.0,1962.3,0.001]
[1770978911451,1.273496,1963.1,1962.3,1.80272197]
[1770978911647,1.273496,1963.1,1962.4,0.52773426]
[1770978912137,5.0936101,1963.3,1962.4,0.52773426]
[1770978913349,5.0936101,1963.3,1963.0,0.001]
[1770978913554,1.27336627,1963.4,1963.0,0.001]
[1770978915540,0.50897142,1963.3,1963.0,0.001]
[1770978915742,1.27343113,1963.2,1963.0,0.001]
[1770978916276,1.27343113,1963.2,1962.3,0.52873426]
[1770978917453,1.27330141,1963.5,1962.3,0.52873426]
[1770978917630,0.50897142,1963.4,1962.5,0.52773426]
[1770978918661,1.27330141,1963.5,1962.5,0.52773426]
[1770978918964,0.50897142,1963.4,1962.5,2.88]
[1770978919131,0.50897142,1963.4,1962.5,3.40773426]
[1770978919928,1.27336627,1963.3,1962.6,0.52773426]
[1770978920131,5.09346508,1963.4,1962.6,0.52773426]
[1770978921437,1.2752134,1963.6,1962.6,0.52773426]
[1770978922150,0.002,1963.6,1962.8,0.52773426]
[1770978922539,0.51097142,1963.6,1962.8,0.52773426]
[1770978922862,0.002,1963.6,1962.8,0.52773426]
[1770978924138,0.002,1963.6,1962.9,1.27362575]
[1770978924446,0.002,1963.6,1963.0,0.52773426]
[1770978925437,0.002,1963.6,1962.8,1.27368781]
[1770978925666,0.51097142,1963.6,1962.7,1.80143968]
[1770978925866,0.51097142,1963.6,1962.7,1.80243968]
[1770978926062,1.27323656,1963.5,1962.7,1.80243968]
[1770978926267,1.78420798,1963.5,1962.7,1.80243968]
[1770978927171,0.50897142,1963.4,1962.7,0.001]
[1770978927668,0.50897142,1963.4,1962.7,1.27474517]
[1770978928370,1.27336627,1963.3,1962.7,0.001]
[1770978931451,1.27334203,1963.4,1962.7,0.48404537]
[1770978934149,0.50712778,1963.5,1962.7,0.48404537]
[1770978934344,0.50712778,1963.5,1962.7,2.43404537]
[1770978934550,0.50712778,1963.5,1962.7,1.951]
[1770978935756,0.50712778,1963.5,1962.7,0.001]
[1770978935949,0.50712778,1963.5,1962.7,1.27475301]
[1770978936155,0.50712778,1963.5,1962.7,1.75982059]
[1770978936479,1.27330141,1963.4,1962.7,1.75982059]
[1770978938752,1.27530141,1963.4,1962.7,1.75982059]
[1770978938953,0.002,1963.4,1962.8,0.48506758]
[1770978940782,0.002,1963.4,1962.8,1.75873385]
[1770978941585,0.48065614,1963.4,1962.7,1.27471729]
[1770978942384,0.48065614,1963.4,1962.7,0.001]
[1770978942552,0.48065614,1963.4,1962.7,1.27475211]
[1770978942976,1.27336627,1963.3,1962.7,1.27475211]
[1770978945589,1.75399794,1963.4,1962.7,1.75981969]
[1770978945884,0.47865614,1963.3,1962.7,0.001]
[1770978947765,1.27343113,1963.2,1962.7,0.001]
[1770978947983,1.75208727,1963.2,1962.7,0.001]
[1770978950592,0.47865614,1963.1,1962.8,0.001]
[1770978953298,1.7522115,1963.1,1962.8,0.001]
[1770978955293,7.67530481,1963.4,1962.9,6.74124871]
[1770978955501,8.15396095,1963.4,1962.8,0.001]
[1770978957695,0.002,1963.4,1962.8,0.48606758]
[1770978957897,1.27530759,1963.4,1962.8,0.48606758]
[1770978959981,0.002,1963.4,1962.9,1.27362575]
[1770978960186,0.002,1963.4,1962.9,1.75869333]
[1770978960387,0.002,1963.4,1962.9,0.48506758]
[1770978960685,0.50190791,1963.4,1962.8,1.27463785]
[1770978961408,0.50190791,1963.4,1962.8,0.001]
[1770978961606,0.50190791,1963.4,1962.8,1.27467757]
[1770978962083,0.49990791,1963.2,1962.8,0.001]
[1770978964799,1.77335262,1963.2,1962.8,0.001]
[1770978965311,1.27542103,1963.3,1962.8,0.001]
[1770978965473,1.27542103,1963.3,1962.7,7.26523882]
[1770978965679,0.002,1963.3,1962.7,7.26523882]
[1770978965878,0.002,1963.3,1962.9,7.26523882]
[1770978967011,0.002,1963.4,1963.1,7.26523882]
[1770978967712,7.67304206,1963.8,1963.3,0.52399011]
[1770978968010,1.77438914,1964.0,1963.4,1.94]
[1770978970880,0.49990791,1963.9,1963.4,1.94]
[1770978971896,1.77294997,1963.8,1963.4,1.94]
[1770978972619,0.49990791,1963.6,1962.7,8.01496056]
[1770978972826,0.49990791,1963.6,1962.9,1.941]
[1770978973900,0.49990791,1963.4,1962.9,1.941]
[1770978974104,1.7731304,1963.6,1962.9,10.4780889]
[1770978974321,1.7731304,1963.6,1962.9,3.7385942]
[1770978975842,1.7751304,1963.6,1962.9,3.7385942]
[1770978976352,1.27522249,1963.6,1962.9,3.21460409]
[1770978976537,0.49990791,1963.5,1962.9,3.21460409]
[1770978980035,1.77320398,1963.5,1962.9,3.21462077]
[1770978980231,1.27520381,1963.6,1962.9,3.73861088]
[1770978981220,1.77511172,1963.6,1962.9,3.73861088]
[1770978981621,0.49990791,1963.5,1962.9,3.21462077]
[1770978982845,1.77314571,1963.5,1962.9,3.21462077]
[1770978983528,0.49990791,1963.4,1962.9,1.941]
[1770978984139,0.49990791,1963.3,1962.9,1.941]
[1770978984533,0.49990791,1963.3,1962.8,0.001]
[1770978984738,1.77333904,1963.2,1962.8,0.001]
[1770978985110,7.67334627,1963.4,1962.8,0.001]
[1770978985537,0.49990791,1963.3,1962.8,0.001]
[1770978986644,0.49990791,1963.1,1962.8,0.001]
[1770978987015,1.27343113,1963.2,1962.8,0.001]
[1770978987217,0.49990791,1963.1,1962.8,0.001]
[1770978988211,0.49990791,1963.1,1963.0,0.001]
[1770978988415,0.49990791,1963.1,1962.4,0.9020182]
[1770978989340,1.77346878,1963.0,1962.4,0.9020182]
[1770978989546,1.77346878,1963.0,1962.4,2.17594018]
[1770978990348,0.49990791,1962.9,1962.4,0.9020182]
[1770978990549,1.75554302,1963.0,1962.4,0.9020182]
[1770978991048,1.75554302,1963.0,1962.4,2.175959]
[1770978992918,0.48198215,1962.9,1962.4,2.175959]
[1770978994954,1.75563402,1962.9,1962.4,2.175959]
[1770978995856,1.75563402,1962.9,1962.4,0.9020182]
[1770978996421,0.46873001,1962.8,1962.4,0.9020182]
[1770978996622,0.46873001,1962.8,1962.3,1.27498711]
[1770978997034,0.46873001,1963.1,1962.4,0.48224165]
[1770978998866,0.46873001,1963.1,1962.3,0.001]
[1770978999352,1.74229088,1963.0,1962.3,0.001]
[1770978999728,0.46873001,1962.9,1962.5,0.001]
[1770979000056,0.002,1962.8,1962.5,0.001]
[1770979001237,0.46873001,1962.6,1962.5,0.001]
[1770979001450,1.74248555,1962.7,1962.5,0.001]
[1770979002456,13.95451501,1962.6,1961.8,0.001]
[1770979002678,0.46873001,1962.4,1961.6,1.75771115]
[1770979002832,9.59662251,1962.6,1961.7,0.48578051]
[1770979003033,0.46873001,1962.5,1961.7,0.48578051]
[1770979003261,0.46873001,1962.5,1961.9,0.48224165]
[1770979003447,0.46873001,1962.5,1962.0,0.00353886]
[1770979003651,1.7425387,1962.7,1962.0,0.48578051]
[1770979005140,1.27380869,1962.7,1962.0,0.48578051]
[1770979005560,5.09690345,1962.8,1962.1,1.75638669]
[1770979005767,1.27569064,1962.8,1962.1,1.75638669]
[1770979006067,0.002,1962.8,1962.3,0.48224165]
[1770979007663,0.47073001,1962.8,1962.4,0.00353886]
[1770979007828,0.47073001,1962.8,1962.2,0.00353886]
[1770979008967,0.47073001,1962.8,1962.1,2.41524165]
[1770979009169,0.47073001,1962.8,1962.2,0.00353886]
[1770979010376,1.27375554,1962.7,1962.2,0.00353886]
[1770979012153,1.27375554,1962.7,1962.2,0.48578051]
[1770979012354,0.002,1962.8,1962.3,0.001]
[1770979013265,0.002,1962.8,1962.4,0.00353886]
[1770979013459,1.27408689,1962.9,1962.4,0.48224165]
[1770979013867,1.7428169,1962.9,1962.3,0.001]
[1770979014081,0.46873001,1962.8,1962.3,0.001]
[1770979014381,1.27375554,1962.7,1962.3,0.001]
[1770979014684,1.27373026,1962.8,1962.3,0.001]
[1770979015382,0.46873001,1962.7,1962.3,0.001]
[1770979015778,1.27373026,1962.8,1962.3,0.001]
[1770979016284,1.74246027,1962.8,1962.3,0.001]
[1770979017281,1.27412679,1962.9,1962.3,0.48324165]
[1770979017952,0.00046114,1962.9,1962.5,0.48224165]
[1770979018784,0.00046114,1962.9,1962.5,1.75608731]
[1770979020882,0.00046114,1962.9,1962.7,0.47230312]
[1770979021887,1.74365199,1963.5,1962.9,0.47230312]
[1770979022086,1.74365199,1963.5,1962.8,7.21519562]
[1770979022896,1.74372508,1963.3,1962.6,3.20578606]
[1770979023261,0.002,1963.6,1962.7,0.47230312]
[1770979023485,1.27323656,1963.5,1962.7,0.47230312]
[1770979023669,1.27518899,1963.6,1962.9,0.47230312]
[1770979024205,1.7455478,1963.6,1962.9,0.47230312]
[1770979024490,0.002,1963.6,1963.0,7.21519562]
[1770979024689,0.002,1963.6,1963.1,0.47230312]
[1770979025391,0.002,1963.6,1963.1,1.74578581]
[1770979025799,0.002,1963.6,1963.3,0.47230312]
[1770979026601,0.47235881,1963.6,1963.0,1.933]
[1770979027761,1.27323656,1963.5,1962.8,0.47230312]
[1770979027997,0.47035881,1963.4,1962.7,1.721]
[1770979028868,0.47035881,1963.4,1962.7,2.19330312]
[1770979031591,5.56530507,1963.6,1962.7,3.46701303]
[1770979031894,0.47035881,1963.4,1962.7,1.721]
[1770979032495,0.47035881,1963.4,1962.7,2.99474851]
[1770979032991,0.47035881,1963.4,1962.7,3.46705163]
[1770979034698,1.27336627,1963.3,1962.7,2.19330312]
[1770979035670,1.74372508,1963.3,1962.7,3.4670582]
[1770979036304,1.27336627,1963.3,1962.7,3.4670582]
[1770979036599,1.27336627,1963.3,1962.8,0.47230312]
[1770979036798,1.27330141,1963.4,1962.8,1.74598959]
[1770979037002,1.27330141,1963.4,1962.8,1.74698959]
[1770979037910,1.2752868,1963.5,1962.9,0.47230312]
[1770979038275,1.74564561,1963.5,1962.8,1.27468647]
[1770979038485,1.74564561,1963.5,1962.8,1.74698959]
[1770979040005,8.14564561,1963.5,1962.8,1.74698959]
[1770979044099,7.6752868,1963.5,1962.9,0.47230312]
[1770979044408,6.402,1963.5,1963.1,0.47230312]
[1770979044705,6.402,1963.5,1963.2,2.40330312]
[1770979044872,0.002,1963.6,1963.2,2.40330312]
[1770979045410,0.002,1963.6,1963.3,0.47230312]
[1770979046807,0.00153886,1964.0,1963.5,0.47230312]
[1770979048191,0.00153886,1964.0,1963.6,2.40430312]
[1770979048816,0.00153886,1964.0,1963.6,3.67744203]
[1770979049120,0.47189767,1964.0,1963.6,1.932]
[1770979049922,0.47189767,1964.0,1963.6,3.67746452]
[1770979049923,0.002,1963.9,1963.6,3.67746452]
[1770979050296,0.002,1964.2,1963.6,3.67746452]
[1770979052211,0.48399643,1964.2,1963.6,1.932]
[1770979054109,1.75484404,1964.1,1963.6,1.932]
[1770979054816,0.48199643,1964.0,1963.6,1.932]
[1770979055182,0.48199643,1964.0,1963.4,1.933]
[1770979055984,1.27297723,1963.9,1963.4,3.20628417]
[1770979056205,1.27296474,1964.0,1963.4,3.70238539]
[1770979058015,0.48444028,1964.0,1963.4,3.20628417]
[1770979058928,0.48644028,1964.2,1963.5,0.49610122]
[1770979059214,0.48644028,1964.2,1963.6,0.49610122]
[1770979059629,0.002,1964.2,1963.6,0.49610122]
[1770979060323,0.002,1964.2,1963.7,1.27310689]
[1770979060817,0.002,1964.2,1963.7,1.76920811]
[1770979062418,0.002,1964.2,1963.7,8.50970885]
[1770979062616,0.002,1964.2,1963.8,1.935]
[1770979062921,0.002,1964.1,1963.8,1.935]
[1770979064627,0.002,1964.1,1963.8,3.20802924]
[1770979065100,0.002,1964.1,1963.8,3.70413046]
[1770979069605,0.002,1964.5,1964.0,0.49610122]
[1770979069805,0.002,1964.5,1964.1,1.945]
[1770979071120,0.48644028,1964.5,1964.1,1.945]
[1770979072326,0.002,1964.5,1964.1,1.945]
[1770979072511,0.002,1964.5,1964.1,3.21782554]
[1770979074932,0.48644028,1964.5,1964.1,1.945]
[1770979076007,0.48444028,1964.4,1964.1,1.945]
[1770979076831,0.48444028,1964.4,1964.2,0.001]
[1770979077029,0.48644028,1964.4,1964.2,0.001]
[1770979077224,0.48644028,1964.4,1963.9,1.431]
[1770979077419,6.74250074,1964.4,1964.0,0.001]
[1770979077629,0.48444028,1964.3,1964.0,0.001]
[1770979077929,0.48644028,1964.4,1964.0,0.001]
[1770979078109,0.002,1964.4,1964.0,0.001]
[1770979081725,0.50192775,1964.4,1964.0,0.001]
[1770979082653,0.002,1964.4,1964.0,0.001]
[1770979083162,0.002,1964.4,1964.0,6.74150074]
[1770979084037,0.002,1964.4,1964.0,7.21441107]
[1770979084238,6.4,1964.7,1964.2,6.74050074]
[1770979084410,5.08886165,1965.1,1964.4,6.74050074]
[1770979084411,0.00153886,1965.0,1964.4,6.74050074]
[1770979084610,0.00153886,1965.0,1964.5,1.27258844]
[1770979085035,0.50146661,1965.0,1964.4,1.27260485]
[1770979085532,0.50146661,1965.0,1964.3,3.22671801]
[1770979086744,1.77225713,1964.9,1964.3,1.954]
[1770979087236,1.77225713,1964.9,1964.3,3.22670841]
[1770979087429,1.77225713,1964.9,1964.3,1.954]
[1770979087812,0.49992775,1964.8,1964.3,1.954]
[1770979088454,0.49992775,1964.8,1964.3,3.22669816]
[1770979088825,1.27237409,1964.9,1964.3,3.22869816]
[1770979089119,1.77377394,1965.0,1964.3,3.22869816]
[1770979090234,1.77377394,1965.0,1964.4,0.001]
[1770979090638,0.002,1964.9,1964.4,0.001]
[1770979091952,0.50192775,1964.9,1964.4,0.001]
[1770979094061,1.77232188,1964.8,1964.4,0.001]
[1770979095253,0.49992775,1964.7,1964.4,0.001]
[1770979095552,1.27239413,1964.8,1964.4,0.001]
[1770979095842,1.77232188,1964.8,1964.4,0.001]
[1770979096748,1.27239413,1964.8,1964.4,0.001]
[1770979098218,1.77232188,1964.8,1964.4,0.001]
[1770979098419,0.49992775,1964.7,1964.4,0.001]
[1770979098634,0.49992775,1964.5,1964.4,0.001]
[1770979099044,1.27252366,1964.6,1964.4,0.001]
[1770979099353,1.77245141,1964.6,1964.4,0.001]
[1770979101647,1.77239137,1964.7,1964.4,0.001]
[1770979101850,1.27433046,1964.9,1964.4,0.001]
[1770979102051,0.002,1964.9,1964.4,0.001]
[1770979102818,1.27433972,1964.9,1964.4,0.001]
[1770979103020,1.77426747,1964.9,1964.4,0.001]
[1770979103349,1.77426747,1964.9,1964.5,0.001]
[1770979103720,1.27433972,1964.9,1964.5,0.001]
[1770979104054,0.002,1964.9,1964.5,0.001]
[1770979107931,0.002,1964.9,1964.5,1.27358844]
[1770979108734,0.002,1964.9,1964.5,1.74649877]
[1770979110866,0.002,1964.9,1964.6,0.4680047]
[1770979111165,0.002,1964.9,1964.6,1.947]
[1770979111960,0.002,1964.9,1964.6,2.4150047]
[1770979112349,0.002,1964.9,1964.7,1.27245889]
[1770979114263,0.002,1964.9,1964.6,3.21949831]
[1770979116277,0.002,1964.8,1964.6,3.21949831]
[1770979117059,0.00153886,1965.0,1964.6,3.21949831]
[1770979121083,0.46562473,1965.4,1964.7,0.49987083]
[1770979121285,1.73757579,1965.5,1964.9,6.72800354]
[1770979121498,5.08686332,1965.9,1965.1,7.22787437]
[1770979121672,0.46562473,1965.9,1965.2,1.964]
[1770979122800,1.7373716,1965.8,1965.2,1.964]
[1770979124101,0.46562473,1965.7,1965.2,1.964]
[1770979124881,1.737501,1965.6,1965.2,1.964]
[1770979125385,1.737501,1965.6,1965.0,1.963]
[1770979126093,0.46562473,1965.5,1965.0,1.963]
[1770979126409,0.46562473,1965.5,1964.7,6.72800354]
[1770979126715,0.46562473,1965.5,1964.8,1.963]
[1770979126875,0.46562473,1965.3,1964.8,1.963]
[1770979128512,1.27200569,1965.4,1964.8,3.23538712]
[1770979128708,1.27200569,1965.4,1964.8,3.23538675]
[1770979128915,1.73763042,1965.4,1964.8,3.23538675]
[1770979129209,1.73963042,1965.4,1964.8,3.23537776]
[1770979129606,0.002,1965.4,1964.8,3.23537776]
[1770979129805,1.27401019,1965.4,1964.8,3.73524859]
[1770979130386,0.002,1965.4,1964.8,3.73524859]
[1770979131020,1.27401031,1965.4,1964.8,3.73524859]
[1770979131413,0.002,1965.4,1964.8,3.73524859]
[1770979132279,0.002,1965.4,1964.9,6.72800354]
[1770979132477,0.002,1965.4,1964.9,7.22787437]
[1770979133823,0.002,1965.4,1964.9,8.50014443]
[1770979134687,0.46762473,1965.4,1964.8,1.963]
[1770979135023,0.46762473,1965.4,1964.8,3.23539322]
[1770979135600,0.002,1965.4,1964.8,3.73526405]
[1770979136006,0.002,1965.4,1964.9,0.49987083]
[1770979136722,0.46562473,1965.3,1964.8,3.23539322]
[1770979137629,1.27213515,1965.2,1964.8,1.963]
[1770979137817,1.73775988,1965.2,1964.7,0.001]
[1770979138023,1.73775988,1965.2,1964.8,1.972]
[1770979138826,0.46562473,1965.1,1964.7,0.001]
[1770979139837,0.46562473,1964.9,1964.7,0.001]
[1770979140020,0.46562473,1964.9,1964.5,0.001]
[1770979140223,8.00026817,1965.0,1964.0,0.00253886]
[1770979140224,0.46562473,1964.7,1964.0,0.00253886]
[1770979140398,0.46562473,1964.7,1964.1,1.97]
[1770979141102,0.45704807,1964.9,1964.2,0.46568084]
[1770979141302,0.45704807,1965.1,1964.2,0.46568084]
[1770979141710,1.27217242,1965.2,1964.2,0.46568084]
[1770979142035,1.27217242,1965.2,1964.4,0.46568084]
[1770979142336,1.27217242,1965.2,1964.5,2.40168084]
[1770979142631,1.27217242,1965.2,1964.9,0.001]
[1770979143032,1.27411945,1965.3,1964.9,0.001]
[1770979143229,0.45704807,1965.2,1964.9,0.001]
[1770979143803,1.27411945,1965.3,1964.9,0.001]
[1770979145137,1.73116752,1965.3,1964.9,0.001]
[1770979145840,0.45704807,1965.2,1964.9,0.001]
[1770979146438,1.27411945,1965.3,1964.9,0.001]
[1770979147036,0.45704807,1965.2,1964.9,0.001]
[1770979148511,0.45704807,1965.0,1964.2,3.23673441]
[1770979148906,0.45704807,1965.0,1964.2,1.964]
[1770979149635,0.45704807,1965.0,1964.2,3.23676897]
[1770979149844,0.45704807,1965.0,1964.2,3.70244981]
[1770979150407,1.72937229,1965.0,1964.2,3.70244981]
[1770979150608,0.45704807,1964.9,1964.2,3.70244981]
[1770979152625,1.27239413,1964.8,1964.2,3.70244981]
[1770979153007,1.72937745,1964.9,1964.2,3.70244981]
[1770979153746,0.45704807,1964.8,1964.2,1.964]
[1770979154243,0.45704807,1964.8,1964.2,3.23674062]
[1770979154556,0.45704807,1964.8,1964.2,3.23673227]
[1770979154715,1.72950696,1964.7,1964.2,1.964]
[1770979155114,1.72950696,1964.7,1964.2,3.23677813]
[1770979155337,1.72950696,1964.7,1964.3,0.001]
[1770979156240,1.72924795,1965.1,1964.3,0.001]
[1770979156445,0.45704807,1965.0,1964.3,0.001]
[1770979156846,1.27232938,1964.9,1964.3,0.001]
[1770979157346,0.45704807,1964.8,1964.3,0.001]
[1770979158849,1.27232938,1964.9,1964.4,1.27265322]
[1770979159153,1.7293127,1965.0,1964.4,1.27265322]
[1770979159747,1.7293127,1965.0,1964.3,1.73935059]
[1770979159947,0.45704807,1964.9,1964.3,0.001]
[1770979160950,0.45704807,1964.7,1964.3,0.001]
[1770979163049,1.27252366,1964.6,1964.3,0.001]
[1770979163259,1.72957173,1964.6,1964.3,0.001]
[1770979164049,0.45704807,1964.5,1964.3,0.001]
[1770979165346,0.45704807,1964.3,1964.0,0.00253886]
[1770979165580,0.45704807,1964.3,1963.6,1.27412084]
[1770979165581,0.45704807,1964.3,1963.6,0.001]
[1770979165916,0.45704807,1964.2,1963.6,0.001]
[1770979167255,0.45704807,1964.0,1963.6,0.001]
[1770979167824,0.45704807,1964.0,1963.3,0.001]
[1770979169267,0.45704807,1963.8,1963.0,0.00153886]
[1770979169461,0.45704807,1963.7,1963.5,0.001]
[1770979169762,0.45704807,1963.7,1963.0,0.00153886]
[1770979172455,0.47825054,1963.5,1963.0,0.00153886]
[1770979174531,0.47825054,1963.3,1963.0,0.00153886]
[1770979177363,1.27343113,1963.2,1963.0,0.00153886]
[1770979177565,1.72494414,1963.2,1963.0,0.00153886]
[1770979178238,1.72494414,1963.2,1962.9,0.001]
[1770979179133,1.72494414,1963.2,1962.3,1.27496428]
[1770979179134,0.45151301,1963.1,1962.3,0.001]
[1770979179564,0.45151301,1962.9,1962.3,0.001]
[1770979181447,1.27369064,1962.8,1962.3,0.001]
[1770979181659,0.45151301,1962.7,1962.3,0.001]
[1770979183768,1.72533345,1962.6,1962.3,0.001]
[1770979186546,0.45151301,1962.5,1962.3,0.001]
[1770979186869,0.45151301,1962.5,1962.2,0.001]
[1770979187056,0.45151301,1962.5,1962.0,0.00253886]
[1770979188350,1.27395026,1962.4,1962.0,0.00253886]
[1770979189982,5.09504171,1962.7,1962.1,0.45142696]
[1770979189983,6.36975131,1962.7,1962.1,0.45142696]
[1770979190186,1.27362575,1962.9,1962.1,0.45142696]
[1770979190344,1.27375554,1962.7,1962.1,0.45142696]
[1770979190551,1.72526855,1962.7,1962.0,1.2767265]
[1770979190872,6.36975131,1962.6,1962.0,1.2767265]
[1770979191075,6.36975131,1962.6,1962.0,1.72815346]
[1770979193583,7.64360452,1962.6,1962.0,1.72815346]
[1770979193879,7.64360452,1962.6,1962.2,0.001]
[1770979194480,6.36975131,1962.5,1962.2,0.001]
[1770979195351,1.27385321,1962.6,1962.2,0.001]
[1770979195552,6.36975131,1962.5,1962.2,0.001]
[1770979197289,1.27381203,1962.7,1962.2,0.45242696]
[1770979197473,6.36975131,1962.6,1962.2,0.45242696]
[1770979198256,7.6435783,1962.6,1962.2,0.001]
[1770979198472,6.36975131,1962.5,1962.2,0.001]
[1770979200961,1.27395026,1962.4,1962.2,0.001]
[1770979201390,6.36975131,1962.3,1962.2,0.001]
[1770979202095,3.61680092,1962.7,1962.2,0.001]
[1770979202296,6.36975131,1962.6,1962.2,0.001]
[1770979202667,6.36975131,1962.5,1962.2,0.001]
[1770979204112,7.6436409,1962.5,1962.2,0.001]
[1770979204292,0.48424599,1962.4,1962.2,0.001]
[1770979204672,6.36975131,1962.3,1962.2,0.001]
[1770979206798,1.27390986,1962.5,1962.2,0.001]
[1770979206969,6.36975131,1962.4,1962.2,0.001]
[1770979208063,7.64372376,1962.4,1962.2,0.001]
[1770979208293,8.12796975,1962.4,1962.2,0.001]